fUST/lending_fUST_20240330
["ID","MTS","AMOUNT","RATE_DAILY","PERIOD"]
[321022062,1711785040530,-2873.4890201,0.00042138,2]
[321022064,1711785040540,-1685.7260117,0.00042521,2]
[321022066,1711785040549,-259.9651734,0.00042888,2]
[321022068,1711785040559,-2729.18873423,0.00042932,4]
[321022070,1711785040569,-377.71627675,0.00042932,2]
[321022071,1711785040579,-166.666666,0.0004297,2]
[321022073,1711785040590,-154.253165,0.00043717,30]
[321022076,1711785040599,-152.094496,0.00043717,30]
[321022078,1711785040608,-154.253168,0.00043717,30]
[321022079,1711785040617,-166.54533521,0.00043899,2]
[321022081,1711785040626,-166.54533517,0.00043899,2]
[321022083,1711785040636,-166.54533517,0.000439,2]
[321022086,1711785040645,-166.54533517,0.000439,2]
[321022088,1711785040656,-166.54533517,0.000439,2]
[321022090,1711785040666,-4387.33879963,0.00043997,2]
[321022092,1711785040675,-155.30490084,0.00043997,4]
[321022094,1711785040684,-5803.81716164,0.00043997,4]
[321022096,1711785040694,-960.56295546,0.00043997,4]
[321022098,1711785040703,-155.47203948,0.00043998,2]
[321022100,1711785040713,-5000.0,0.00043998,2]
[321022102,1711785040722,-155.72920344,0.00043998,120]
[321022103,1711785040732,-12021.14873537,0.00043999,2]
[321022246,1711785043530,-6377.69702504,0.00043999,2]
[321022248,1711785043631,-1557.74146195,0.00043999,2]
[321022249,1711785043644,-1804.323423,0.00043999,2]
[321022250,1711785043656,-22410.54122703,0.00043999,2]
[321022251,1711785043666,-3513.34311768,0.00043999,2]
[321022252,1711785043704,-0.12283743,0.00043999,2]
[321022254,1711785046434,-1486.53404489,0.00043999,2]
[321022255,1711785046444,-5000.0,0.00043999,2]
[321022256,1711785046453,-2098.18349339,0.00043999,2]
[321022257,1711785046464,-548.70752457,0.00044,2]
[321022279,1711785977397,2166.81,0.00032,2]
[321022288,1711786170121,-666.84599351,0.00035993,4]
[321022289,1711786170142,-252.64893181,0.00035994,2]
[321022290,1711786170163,-652.46831196,0.00035994,2]
[321022291,1711786170183,-1049.85036764,0.00035995,4]
[321022292,1711786170203,-1069.66840849,0.00036,7]
[321022417,1711786238618,-282.0923778,0.00035998,2]
[321022419,1711786238660,-1374.84197081,0.00035998,4]
[321022421,1711786238677,-2108.09342676,0.00035998,2]
[321022423,1711786238687,-601.18979497,0.00035999,4]
[321022425,1711786238696,-683.39663965,0.00036,7]
[321022920,1711786243764,-1557.74146195,0.00036,7]
[321022923,1711786243776,-1804.323423,0.00036,7]
[321022925,1711786243788,-25923.88434471,0.00036,7]
[321023492,1711786461187,24157.7611687,0.00035,7]
[321023494,1711787368175,-252.64893181,0.00033313,2]
[321023495,1711787368198,-76.01773419,0.00033313,2]
[321023598,1711787432759,-976.08543115,0.00032998,4]
[321023600,1711787432769,-522.2194426,0.00032999,2]
[321023602,1711787432779,-2108.09342676,0.00033311,2]
[321023604,1711787432788,-925.87076632,0.00033313,4]
[321023606,1711787432798,-155.18037566,0.00033998,4]
[321023608,1711787432808,-2240.7539243,0.00033998,4]
[321023611,1711787432818,-231.58401745,0.00033998,4]
[321023613,1711787432827,-232.31974497,0.00033998,2]
[321023615,1711787432838,-155.99018198,0.00033999,4]
[321023617,1711787432849,-43364.3830591,0.00034,3]
[321023619,1711787432859,-463.20271345,0.00034,4]
[321023621,1711787432868,-313.69499149,0.00034453,2]
[321023623,1711787432877,-4910.517401,0.00034759,2]
[321023626,1711787432886,-213.27621276,0.00034998,4]
[321023629,1711787432895,-500.0,0.0003512,7]
[321023632,1711787432905,-547.40979062,0.0003512,7]
[321023634,1711787432913,-21193.6317761,0.00035121,2]
[321023636,1711787432924,-3279.00737164,0.00036,4]
[321023638,1711787432933,-313.69499145,0.00036815,2]
[321023639,1711787432943,-160.28380826,0.00037998,2]
[321023642,1711787432953,-1796.43940577,0.00037998,4]
[321023643,1711787432963,-325.59873759,0.00037998,4]
[321023645,1711787432972,-672.97664528,0.00037999,4]
[321023647,1711787432982,-11648.04040011,0.00038,2]
[321023650,1711787432995,-600.6,0.00038,2]
[321023714,1711787444232,-26718.66320243,0.00038,2]
[321023715,1711787444244,-1025.20922794,0.00038,2]
[321023716,1711787444254,-355.07669284,0.00038797,4]
[321023807,1711788637987,-650.72362077,0.0003876,4]
[321023809,1711788637997,-354.3884951,0.00038761,7]
[321023812,1711788638007,-252.64893181,0.00038762,2]
[321023814,1711788638017,-3023.04829628,0.00038797,4]
[321023816,1711788638028,-925.87076632,0.00038797,4]
[321023818,1711788638037,-158.0409327,0.00038799,4]
[321023819,1711788638047,-189.99379975,0.0004,4]
[321023822,1711788638057,-162.0000001,0.0004,2]
[321023824,1711788638068,-162.0,0.0004,2]
[321023826,1711788638077,-500.0,0.00041,7]
[321023828,1711788638087,-166.666666,0.00041096,2]
[321023830,1711788638096,-166.666666,0.00042199,2]
[321023832,1711788638110,-179.76,0.00043,4]
[321023833,1711788638119,-166.666666,0.00043302,2]
[321023834,1711788638129,-152.094495,0.00043681,30]
[321023835,1711788638139,-154.253165,0.00043681,30]
[321023836,1711788638150,-165.259728,0.00043681,30]
[321023837,1711788638161,-199.48532,0.00043681,30]
[321023838,1711788638171,-155.59137515,0.000437,15]
[321023839,1711788638181,-188.21699487,0.00043897,2]
[321023840,1711788638191,-188.21699487,0.00043898,2]
[321023841,1711788638201,-188.21699487,0.00043899,2]
[321023842,1711788638212,-188.21699487,0.00043899,2]
[321023843,1711788638221,-10000.0,0.000439,5]
[321023844,1711788638231,-1000.0,0.000439,2]
[321023845,1711788638241,-188.21699487,0.000439,2]
[321023846,1711788638251,-207.17397025,0.00043996,2]
[321023847,1711788638260,-1858.62237315,0.00043996,4]
[321023848,1711788638270,-303.1190707,0.00043996,4]
[321023849,1711788638280,-5081.57039187,0.00043996,4]
[321023850,1711788638360,-243.20211305,0.00043997,4]
[321023851,1711788638370,-574.50614814,0.00043997,120]
[321023852,1711788638380,-155.88337888,0.00043998,4]
[321023853,1711788638389,-155.4307891,0.00043998,4]
[321023854,1711788638399,-230.33276673,0.00043998,4]
[321023855,1711788638408,-547.86056216,0.00043998,2]
[321023856,1711788638419,-463.20271345,0.00043998,4]
[321023857,1711788638428,-15375.36754403,0.00043998,2]
[321023858,1711788638441,-252.45154113,0.00043998,2]
[321023870,1711788643177,-6470.07273306,0.00043998,2]
[321023871,1711788643244,-0.04785051,0.00043998,2]
[321023902,1711789039663,-542.26968397,0.00040897,4]
[321023903,1711789039686,-405.01542297,0.00040901,7]
[321024077,1711789840209,-542.26968397,0.00039999,4]
[321024078,1711789840219,-162.0,0.0004,2]
[321024079,1711789840228,-1058.13801865,0.00040901,4]
[321024080,1711789840237,-626.39757293,0.00040902,3]
[321024170,1711791032355,-379.58877878,0.00039999,4]
[321024171,1711791032365,-162.0,0.0004,2]
[321024172,1711791032374,-2226.55420295,0.00040895,3]
[321024173,1711791032383,-1058.13801865,0.00040902,4]
[321024174,1711791032393,-166.666666,0.00041373,2]
[321024175,1711791032403,-166.666666,0.00042501,2]
[321024176,1711791032411,-202.1506933,0.000426,2]
[321024177,1711791032420,-202.1506933,0.000426,2]
[321024178,1711791032430,-202.1506933,0.000426,2]
[321024179,1711791032439,-202.1506933,0.000426,2]
[321024180,1711791032449,-98.93812253,0.000426,2]
[321024185,1711791038374,-103.21257077,0.000426,2]
[321024186,1711791038384,-202.1506933,0.000426,2]
[321024187,1711791038394,-202.1506933,0.000426,2]
[321024188,1711791038404,-201.8272957,0.00042609,2]
[321024189,1711791038413,-1850.0,0.00043,120]
[321024190,1711791038423,-179.76,0.00043,4]
[321024191,1711791038432,-155.0,0.0004305,26]
[321024192,1711791038442,-166.666666,0.00043629,2]
[321024193,1711791038451,-1000.0,0.000439,2]
[321024194,1711791038461,-4906.16069043,0.0004395,7]
[321024195,1711791038472,-5597.61208857,0.0004395,7]
[321024196,1711791038481,-1000.0,0.00043997,120]
[321024197,1711791038491,-10081.06281212,0.00043997,3]
[321024198,1711791038501,-23607.78928038,0.00043998,2]
[321024199,1711791038510,-498.94477108,0.00043998,2]
[321024200,1711791038520,-208.84013112,0.00043998,2]
[321024201,1711791038529,-350.76894668,0.00043998,4]
[321024202,1711791038543,-206.90646323,0.00043998,4]
[321024203,1711791038552,-283.63401118,0.00043998,7]
[321024204,1711791038560,-433.80651329,0.00043998,4]
[321024205,1711791038570,-155.84034179,0.00043998,4]
[321024206,1711791038579,-256.33278647,0.00043998,4]
[321024207,1711791038588,-470.22795257,0.00043999,120]
[321024208,1711791038598,-500.0,0.00043999,120]
[321024209,1711791038607,-500.0,0.00043999,120]
[321024210,1711791038616,-500.0,0.00043999,120]
[321024211,1711791038625,-500.0,0.00043999,120]
[321024212,1711791038635,-500.0,0.00043999,120]
[321024213,1711791038644,-500.0,0.00043999,120]
[321024214,1711791038653,-637.79476202,0.00043999,120]
[321024215,1711791038662,-500.0,0.00043999,120]
[321024216,1711791038672,-500.0,0.00043999,120]
[321024217,1711791038682,-373.54423295,0.00044,8]
[321024218,1711791038691,-21995.66830655,0.00044,2]
[321024233,1711791040473,-503.01188397,0.00044,2]
[321024261,1711791043541,-818.01160747,0.00044,2]
[321024262,1711791043553,-1687.93688315,0.00044,2]
[321024270,1711791365195,109171.36775818,0.00040899,60]
[321024277,1711791796479,1938.618491,0.00040899,30]
[321024278,1711791831901,1817.45483625,0.00040899,30]
[321024279,1711791855724,2080.61835603,0.00040899,30]
[321024280,1711791880803,6421.67375475,0.00040899,30]
[321024281,1711791923427,1575.12752475,0.00040899,30]
[321024787,1711792243792,-379.58877878,0.00039989,4]
[321024789,1711792243802,-3493.16309807,0.00039989,4]
[321024791,1711792243811,-282.15555204,0.0003999,4]
[321024901,1711792471341,222.15,0.00012,7]
[321024904,1711792506930,689.11238465,0.00012,2]
[321024906,1711792524933,438.73761535,0.00012,2]
[321024907,1711792524969,250.3747693,0.00012,2]
[321024909,1711792542945,689.11238465,0.00012,2]
[321024910,1711792558937,256.0930276,0.00012,2]
[321025103,1711793438824,-379.58877878,0.00039936,4]
[321025104,1711793438833,-216.45940751,0.00039937,4]
[321025105,1711793438842,-564.40983655,0.00039937,4]
[321025106,1711793438852,-2871.12269247,0.00039939,4]
[321025620,1711793443896,-622.0404056,0.00039939,4]
[321025622,1711793443905,-400.0,0.00039976,2]
[321025624,1711793443915,-1000.0,0.0004,30]
[321025626,1711793443925,-162.0,0.0004,2]
[321025628,1711793443935,-154.95351395,0.00040798,4]
[321025630,1711793443944,-220.0,0.000408,7]
[321025632,1711793443953,-5062.80447504,0.00040904,2]
[321025634,1711793443962,-166.666666,0.00041096,2]
[321025636,1711793443972,-166.666666,0.00042157,2]
[321025638,1711793443982,-153.0,0.00042609,2]
[321025640,1711793443991,-153.0,0.00042609,2]
[321025642,1711793444001,-500.0,0.00043,120]
[321025644,1711793444010,-500.0,0.00043,120]
[321025646,1711793444019,-500.0,0.00043,120]
[321025648,1711793444028,-500.0,0.00043,120]
[321025650,1711793444037,-362.8157372,0.00043,120]
[321025897,1711793446863,-130.3842628,0.00043,120]
[321025898,1711793446872,-154.95351395,0.00043,4]
[321025899,1711793446881,-500.3929708,0.00043,2]
[321025900,1711793446891,-153.0,0.00043157,2]
[321025901,1711793446900,-153.0,0.00043157,2]
[321025902,1711793446909,-153.0,0.00043157,2]
[321025903,1711793446917,-153.0,0.00043157,2]
[321025904,1711793446926,-18.5838289,0.00043157,2]
[321026842,1711794409522,-3197.35768053,0.00041826,120]
[321026843,1711794448143,-433.81574718,0.00040826,4]
[321026844,1711794448166,-313.56102031,0.00040826,4]
[321026845,1711794448189,-1699.5237975,0.00040827,2]
[321026846,1711794448211,-166.666666,0.00041096,2]
[321026847,1711794448233,-2609.06368646,0.00041825,4]
[321026848,1711794479734,-500.0,0.00041828,31]
[321026849,1711794479758,-500.0,0.00041828,31]
[321026850,1711794479780,-444.96594436,0.00041828,31]
[321026851,1711794479803,-500.0,0.00041828,31]
[321026852,1711794479826,-391.33842861,0.00041828,31]
[321026853,1711794479853,-500.0,0.00041828,31]
[321026865,1711794610701,-1354.0,0.00041829,30]
[321026894,1711794631930,-313.56102031,0.00040983,4]
[321026896,1711794631940,-433.81574718,0.00040984,4]
[321026898,1711794631949,-208.31732446,0.00041725,2]
[321026900,1711794631959,-1000.0,0.00041729,2]
[321026902,1711794631968,-3626.97916334,0.00041825,4]
[321026905,1711794631987,-27065.52239926,0.00041825,4]
[321026907,1711794631997,-1604.95797073,0.00041825,4]
[321026909,1711794632006,-170.48545562,0.00041827,4]
[321026911,1711794632015,-45705.72894911,0.00041827,2]
[321026913,1711794632024,-18309.54668062,0.00041828,4]
[321026946,1711794638110,-417.40152858,0.00041824,31]
[321026947,1711794638120,-6264.20609937,0.00041828,4]
[321026948,1711794638129,-28318.39237205,0.00041829,30]
[321026949,1711794638142,-6022.09140271,0.00041829,30]
[321026950,1711794638154,-359.46,0.00041829,30]
[321026951,1711794638168,-12630.59657094,0.00041829,30]
[321026963,1711794643111,-5231.79999845,0.00041754,30]
[321027007,1711794646109,-474.17740683,0.00041824,31]
[321027025,1711794646905,-25.82259317,0.00041824,31]
[321027026,1711794646919,-467.20960451,0.00041824,31]
[321027027,1711794646930,-276.41461169,0.00041824,31]
[321027028,1711794646942,-6618.4026336,0.00041754,30]
[321027029,1711794646961,-1936.47096721,0.00041754,30]
[321027030,1711794646974,-3478.33720486,0.00041754,30]
[321027034,1711795540999,7387.77,0.00033,2]
[321027044,1711795639013,270.99919895,0.000309,2]
[321027045,1711795644258,-270.99919895,0.000359,2]
[321027046,1711795644279,-216.45940751,0.00039727,4]
[321027047,1711795644300,-379.58877878,0.00039728,4]
[321027048,1711795644320,-219.49271421,0.00039728,4]
[321027049,1711795644341,-451.74012081,0.0003999,2]
[321027050,1711795644363,-24900.0,0.00040146,2]
[321027051,1711795644384,-233.313875,0.00040161,2]
[321027052,1711795644404,-998.0085015,0.0004048,2]
[321027053,1711795644425,-976.69478145,0.00040732,30]
[321027054,1711795644447,-166.666666,0.00041096,2]
[321027055,1711795644469,-185.49926987,0.00041653,2]
[321027056,1711795644489,-201.39694978,0.00041721,30]
[321027057,1711795644510,-263.53010736,0.0004173,4]
[321027058,1711795644530,-430.83675919,0.0004173,4]
[321027059,1711795644551,-308.50284193,0.0004173,4]
[321027060,1711795644571,-279.7228846,0.0004173,4]
[321027061,1711795644591,-157.63008606,0.0004173,4]
[321027062,1711795644612,-487.4018791,0.0004173,15]
[321027063,1711795644635,-348.73394197,0.00041731,31]
[321027064,1711795644657,-160.66876113,0.00041731,30]
[321027065,1711795644679,-21897.48615253,0.00041732,30]
[321027120,1711795832193,-250.84881624,0.00041095,4]
[321027122,1711795832203,-166.666666,0.00041096,2]
[321027123,1711795832212,-185.49926986,0.0004163,2]
[321027125,1711795832222,-325.36181039,0.00041731,4]
[321027126,1711795832232,-51155.26063049,0.00041732,30]
[321027127,1711795832242,-239.29407615,0.00041753,3]
[321027128,1711795832251,-14191.88959525,0.00041829,4]
[321027129,1711795832494,-3348.03222243,0.00041829,4]
[321027130,1711795832503,-166.666666,0.00042058,2]
[321027131,1711795832513,-153.0,0.00042104,2]
[321027132,1711795832522,-287.4161711,0.00042204,2]
[321027133,1711795832531,-154.95351395,0.00043,4]
[321027134,1711795832611,-151.0,0.00043,2]
[321027135,1711795832622,-166.666666,0.00043019,2]
[321027136,1711795832632,-298.0,0.0004306,26]
[321027137,1711795832641,-157.59963815,0.00043157,4]
[321027138,1711795832651,-652.936034,0.00043157,120]
[321027184,1711795838290,-148.29871012,0.00043157,120]
[321027186,1711795838299,-1000.0,0.00043899,2]
[321027188,1711795838308,-1357.7410405,0.000439,2]
[321027190,1711795838320,-511.69834458,0.000439,2]
[321027192,1711795838329,-166.666666,0.00043981,2]
[321027194,1711795838339,-155.62974661,0.00043997,4]
[321027196,1711795838349,-36.42298576,0.00043997,4]
[321027311,1711795840325,-119.38435953,0.00043997,4]
[321027312,1711795840334,-2770.97137607,0.00043997,120]
[321027313,1711795840343,-156.76106158,0.00043997,4]
[321027314,1711795840352,-852.85038598,0.00043997,4]
[321027315,1711795840361,-470.79348997,0.00043997,4]
[321027316,1711795840369,-522.95750843,0.00043997,4]
[321027317,1711795840378,-3014.34582709,0.00043997,4]
[321027318,1711795840387,-388.83535289,0.00043998,4]
[321027319,1711795840397,-524.86004617,0.00043998,4]
[321027320,1711795840406,-157.08405031,0.00043998,4]
[321027321,1711795840416,-263.30030311,0.00043998,7]
[321027322,1711795840425,-392.25181308,0.00043999,120]
[321027323,1711795840434,-403.59355644,0.00043999,120]
[321027324,1711795840443,-2706.64376151,0.00043999,4]
[321027325,1711795840453,-1265.56710784,0.00043999,2]
[321027398,1711796274855,-9000.0,0.00037,40]
[321027401,1711796832157,-219.49271421,0.00036999,4]
[321027402,1711796832178,-77.0056179,0.00037,40]
[321027403,1711796832198,-515.73759495,0.00037,4]
[321027404,1711796832217,-772.167458,0.00037,7]
[321027407,1711796970110,-150.0,0.000349,2]
[321027408,1711796970133,-217.61452854,0.000369,2]
[321027409,1711796970155,-3701.27905451,0.00037,7]
[321027475,1711797032375,-1551.65578124,0.00037,7]
[321027524,1711797040471,-22827.52666976,0.00037,7]
[321027525,1711797040481,-271.8991831,0.00037,4]
[321027526,1711797040491,-16420.2369834,0.0003849,2]
[321027528,1711797040501,-219.49271421,0.00038649,4]
[321027530,1711797040512,-217.61452851,0.0003865,2]
[321027532,1711797040522,-217.61452851,0.000404,2]
[321027533,1711797040531,-2746.34,0.00040702,10]
[321027535,1711797040540,-7825.0,0.00040702,2]
[321027536,1711797040550,-2002.60457374,0.00040702,30]
[321027538,1711797040560,-166.666666,0.00041096,2]
[321027540,1711797040570,-928.4462289,0.00041798,4]
[321027542,1711797040581,-14534.0878183,0.00041799,4]
[321027544,1711797040590,-166.666666,0.00042058,2]
[321027546,1711797040601,-217.61452851,0.0004215,2]
[321027548,1711797040611,-154.93802479,0.00043,4]
[321027549,1711797040621,-1000.0,0.00043,43]
[321027550,1711797040630,-166.666666,0.00043019,2]
[321027551,1711797040640,-500.0,0.00043899,120]
[321027552,1711797040650,-1000.0,0.000439,2]
[321027553,1711797040660,-400.0,0.000439,2]
[321027554,1711797040670,-2013.26879258,0.000439,2]
[321027555,1711797040679,-217.61452851,0.000439,2]
[321027556,1711797040688,-24532.85734236,0.0004398,120]
[321027666,1711797951206,-250.84881624,0.00042145,4]
[321027667,1711797951228,-166.666666,0.00042146,2]
[321027668,1711797951248,-4078.7228952,0.00042774,2]
[321027669,1711797951268,-154.93802479,0.00043,4]
[321027670,1711797951288,-166.666666,0.00043295,2]
[321027671,1711797951308,-181.03948175,0.000438,2]
[321027672,1711797951328,-363.31345575,0.00043899,4]
[321027673,1711797951348,-1000.0,0.000439,2]
[321027674,1711797951369,-24394.12805672,0.000439,120]
[321027675,1711798051095,-250.84881624,0.00042999,4]
[321027676,1711798051115,-88.51901015,0.00043,4]
[321027757,1711798238696,-66.41901464,0.00043,4]
[321027758,1711798238706,-1000.0,0.000439,2]
[321027759,1711798238715,-2988.91566569,0.000439,120]
[321027786,1711798243703,-0.00164204,0.000439,120]
[321027812,1711799137162,-2166.23614825,0.00039999,4]
[321027813,1711799137181,-167.14007523,0.0004,4]
[321027814,1711799137201,-35404.56000002,0.0004,28]
[321027815,1711799137220,-193.58371,0.0004,2]
[321027816,1711799137239,-166.666666,0.00041861,2]
[321027817,1711799137262,-24900.0,0.00042423,2]
[321027818,1711799137282,-154.93802479,0.00043,4]
[321027819,1711799137301,-1407.0,0.00043,2]
[321027820,1711799137323,-166.666666,0.00043002,2]
[321027821,1711799137343,-2000.0,0.00043835,60]
[321027822,1711799137363,-2000.0,0.00043835,61]
[321027823,1711799137382,-2000.0,0.00043835,62]
[321027824,1711799137401,-509.96281182,0.00043835,63]
[321027825,1711799137421,-1000.0,0.000439,2]
[321027826,1711799137441,-17912.5738596,0.000439,120]
[321027827,1711799137460,-202.0622477,0.000439,2]
[321027828,1711799137479,-128.22669417,0.000439,2]
[321027869,1711799433341,-166.666666,0.00042154,2]
[321027870,1711799433351,-716.230696,0.00042999,2]
[321027871,1711799433361,-208.82087294,0.00043,4]
[321027872,1711799433369,-166.666666,0.00043304,2]
[321027873,1711799433378,-664.93574095,0.000438,2]
[321027874,1711799433387,-500.0,0.00043835,4]
[321027875,1711799433404,-500.0,0.00043835,4]
[321027876,1711799433422,-2659.6,0.00043835,4]
[321027877,1711799433436,-257.80429759,0.00043835,4]
[321027932,1711799438753,-242.19570241,0.00043835,4]
[321027935,1711799438767,-2614.23,0.00043835,4]
[321027937,1711799438781,-500.0,0.00043835,4]
[321027940,1711799438795,-500.0,0.00043835,4]
[321027942,1711799438809,-500.0,0.00043835,4]
[321027945,1711799438824,-500.0,0.00043835,4]
[321027947,1711799438838,-500.0,0.00043835,4]
[321027950,1711799438852,-500.0,0.00043835,4]
[321027952,1711799438865,-533.66600188,0.00043835,4]
[321027954,1711799438879,-500.0,0.00043835,4]
[321027957,1711799438893,-500.66090408,0.00043835,4]
[321027959,1711799438907,-500.0,0.00043835,4]
[321027962,1711799438921,-500.0,0.00043835,4]
[321027964,1711799438935,-500.0,0.00043835,4]
[321027967,1711799438947,-499.62803866,0.00043835,4]
[321027969,1711799438961,-3116.57,0.00043835,4]
[321027971,1711799438974,-500.0,0.00043835,4]
[321027974,1711799438987,-1000.0,0.00043835,4]
[321027976,1711799439000,-500.0,0.00043835,4]
[321027979,1711799439014,-13459.13,0.00043835,4]
[321027981,1711799439023,-484.2278334,0.00043835,4]
[321027983,1711799439032,-500.0,0.00043835,4]
[321027989,1711799439150,-4700.62,0.00043835,4]
[321027990,1711799439163,-501.51309716,0.00043835,4]
[321027991,1711799439172,-500.0,0.00043899,4]
[321027992,1711799439182,-500.0,0.00043899,4]
[321027993,1711799439193,-506.69601787,0.00043899,4]
[321027994,1711799439203,-318.93790506,0.00043899,4]
[321027995,1711799439212,-511.72309125,0.00043899,4]
[321027996,1711799439221,-500.0,0.00043899,4]
[321027997,1711799439231,-500.0,0.00043899,4]
[321027998,1711799439240,-36220.54,0.00043899,4]
[321027999,1711799439249,-500.0,0.00043899,4]
[321028000,1711799439259,-500.0,0.00043899,4]
[321028001,1711799439268,-500.0,0.00043899,4]
[321028003,1711799439278,-385.99770771,0.00043899,4]
[321028005,1711799439287,-500.0,0.00043899,4]
[321028007,1711799439296,-500.0,0.00043899,4]
[321028009,1711799439306,-3106.73,0.00043899,4]
[321028011,1711799439315,-8490.87,0.00043899,4]
[321028013,1711799439324,-502.26231451,0.00043899,4]
[321028015,1711799439334,-171.14569896,0.00043899,4]
[321028017,1711799439343,-500.0,0.00043899,4]
[321028019,1711799439353,-489.1725812,0.00043899,4]
[321028021,1711799439363,-903.30645976,0.00043899,4]
[321028039,1711799439523,-52.00354024,0.00043899,4]
[321028041,1711799439532,-500.0,0.00043899,4]
[321028043,1711799439541,-310.27153035,0.00043899,4]
[321028045,1711799439551,-500.0,0.00043899,4]
[321028047,1711799439561,-500.0,0.00043899,4]
[321028049,1711799439570,-500.0,0.00043899,4]
[321028051,1711799439579,-7690.9710439,0.00043899,4]
[321028286,1711799443895,-500.0,0.00043835,4]
[321028287,1711799443905,-44.7689561,0.00043899,4]
[321028288,1711799443914,-500.0,0.00043899,4]
[321028289,1711799443923,-500.0,0.00043899,4]
[321028290,1711799443932,-500.0,0.00043899,4]
[321028291,1711799443941,-500.0,0.00043899,4]
[321028292,1711799443950,-4921.61,0.00043899,4]
[321028293,1711799443959,-37.4007361,0.00043899,4]
[321028294,1711799443971,-627.7592639,0.00043899,4]
[321028295,1711799443980,-1000.0,0.000439,2]
[321028296,1711799443989,-733.77030948,0.000439,2]
[321028297,1711799443998,-1904.43872241,0.0004398,120]
[321028298,1711799444009,-2284.76055219,0.0004398,120]
[321028299,1711799444018,-2352.39937268,0.00043998,120]
[321028300,1711799444029,-127.39215293,0.00043998,120]
[321028301,1711799444038,-2408.63698845,0.00043998,2]
[321028302,1711799444047,-2232.82393229,0.00043998,120]
[321028303,1711799444055,-156.17474072,0.00043998,4]
[321028304,1711799444064,-688.89705441,0.00043998,4]
[321028305,1711799444073,-1063.82097758,0.00043998,4]
[321028306,1711799444082,-11.36930343,0.00043998,4]
[321028360,1711799446912,-500.0,0.00043835,4]
[321028362,1711799446921,-685.28,0.00043899,4]
[321028364,1711799446931,-187.7670803,0.00043899,4]
[321028422,1711800505713,699.15,0.00022,2]
[321028429,1711800619333,154.98450155,0.00022,2]
[321028430,1711800620786,155.2374134,0.00022,2]
[321028431,1711800627912,10011.99605098,0.0004068,7]
[321028440,1711800631874,-6365.6081969,0.0004,30]
[321028441,1711800631909,-219.49271421,0.00039999,4]
[321028442,1711800631918,-685.10434593,0.00041241,5]
[321028443,1711800631928,-166.666666,0.00041658,2]
[321028444,1711800631938,-358.115348,0.00042381,2]
[321028445,1711800631947,-550.0,0.00042392,5]
[321028446,1711800631957,-9910.0265692,0.00042393,2]
[321028447,1711800631966,-166.666666,0.00042794,2]
[321028448,1711800631975,-325.36181039,0.00042956,4]
[321028449,1711800631985,-1346.29372915,0.00043507,30]
[321028450,1711800631994,-740.78798551,0.00043507,30]
[321028451,1711800632004,-199.485321,0.00043681,30]
[321028452,1711800632014,-239.382384,0.00043681,30]
[321028454,1711800632024,-165.259728,0.00043681,30]
[321028456,1711800632036,-185.49926986,0.00043735,2]
[321028457,1711800632046,-1000.0,0.00043735,2]
[321028458,1711800632056,-239.29407615,0.00043834,3]
[321028459,1711800632066,-471.07806693,0.00043834,31]
[321028460,1711800632076,-406.93883411,0.00043834,31]
[321028461,1711800632087,-500.0,0.00043835,4]
[321028462,1711800632096,-500.0,0.00043835,4]
[321028463,1711800632106,-500.0,0.00043835,4]
[321028464,1711800632116,-500.0,0.00043835,4]
[321028465,1711800632125,-500.0,0.00043835,4]
[321028466,1711800632135,-500.0,0.00043835,4]
[321028467,1711800632145,-500.0,0.00043835,4]
[321028468,1711800632155,-500.0,0.00043835,4]
[321028469,1711800632165,-500.0,0.00043835,4]
[321028470,1711800632178,-500.0,0.00043835,4]
[321028471,1711800632190,-500.0,0.00043835,4]
[321028472,1711800632200,-639.51,0.00043835,4]
[321028473,1711800632210,-500.0,0.00043835,4]
[321028474,1711800632220,-500.0,0.00043835,4]